[Event "Late-Titled-Tuesday-Blitz-February-06-2024"]
[Site "Chess.com"]
[Date "2024.02.06"]
[Round "4"]
[White "platy3"]
[Black "Flawless_Fighter"]
[Result "1-0"]
[WhiteElo "2948"]
[BlackElo "2714"]
[TimeControl "180+1"]
[EndTime "14:38:07 PST"]
[Termination "platy3 won by resignation"]

1. e4 {[%clk 0:03:00.9]} 1... e5 {[%clk 0:02:59.8]} 2. Nf3 {[%clk 0:03:01.1]}
2... Nc6 {[%clk 0:03:00.2]} 3. Bc4 {[%clk 0:03:01.8]} 3... Nf6 {[%clk
0:02:59.8]} 4. d3 {[%clk 0:03:02.4]} 4... Be7 {[%clk 0:02:59.5]} 5. O-O {[%clk
0:02:59.8]} 5... d6 {[%clk 0:02:59.1]} 6. h3 {[%clk 0:02:59.7]} 6... O-O {[%clk
0:02:58.9]} 7. a4 {[%clk 0:02:57.6]} 7... h6 {[%clk 0:02:56]} 8. Re1 {[%clk
0:02:57.1]} 8... Re8 {[%clk 0:02:56]} 9. Nc3 {[%clk 0:02:56.9]} 9... Bf8 {[%clk
0:02:55.5]} 10. a5 {[%clk 0:02:55]} 10... Be6 {[%clk 0:02:54.3]} 11. a6 {[%clk
0:02:53.5]} 11... b6 {[%clk 0:02:46.3]} 12. Bb5 {[%clk 0:02:51.4]} 12... Bd7
{[%clk 0:02:44.4]} 13. Ne2 {[%clk 0:02:44]} 13... Ne7 {[%clk 0:02:43.1]} 14. Bc4
{[%clk 0:02:43.4]} 14... Ng6 {[%clk 0:02:35.1]} 15. Ng3 {[%clk 0:02:42.2]} 15...
c6 {[%clk 0:02:35.5]} 16. Bb3 {[%clk 0:02:28.8]} 16... d5 {[%clk 0:02:33.8]} 17.
Bd2 {[%clk 0:02:21.8]} 17... Qc7 {[%clk 0:02:33.5]} 18. c3 {[%clk 0:02:11.1]}
18... Rad8 {[%clk 0:02:33.3]} 19. Qc2 {[%clk 0:02:11.1]} 19... Bc8 {[%clk
0:02:30.4]} 20. d4 {[%clk 0:01:54.3]} 20... Nxe4 {[%clk 0:02:24.4]} 21. Nxe4
{[%clk 0:01:54.1]} 21... dxe4 {[%clk 0:02:20.8]} 22. Qxe4 {[%clk 0:01:54.5]}
22... Be6 {[%clk 0:02:13.1]} 23. Bxe6 {[%clk 0:01:50]} 23... Rxe6 {[%clk
0:02:14]} 24. dxe5 {[%clk 0:01:50.2]} 24... Nxe5 {[%clk 0:02:09.3]} 25. Nd4
{[%clk 0:01:45.3]} 25... Ree8 {[%clk 0:01:52.5]} 26. Bf4 {[%clk 0:01:37.7]}
26... Bd6 {[%clk 0:01:49.4]} 27. Bg3 {[%clk 0:01:27]} 27... g6 {[%clk
0:01:43.9]} 28. f4 {[%clk 0:01:13.7]} 28... Nc4 {[%clk 0:01:38.8]} 29. Qxc6
{[%clk 0:01:13.2]} 29... Rxe1+ {[%clk 0:01:28.4]} 30. Rxe1 {[%clk 0:01:14.1]}
30... Nxb2 {[%clk 0:01:10.7]} 31. Qxc7 {[%clk 0:01:14]} 31... Bxc7 {[%clk
0:01:11.6]} 32. Re7 {[%clk 0:01:14.1]} 32... Rc8 {[%clk 0:00:44.7]} 33. Nb5
{[%clk 0:01:12.1]} 33... Bb8 {[%clk 0:00:42.5]} 34. Nxa7 {[%clk 0:01:11.1]}
34... Bxa7 {[%clk 0:00:37.2]} 35. Rxa7 {[%clk 0:01:10.7]} 35... Rxc3 {[%clk
0:00:37.3]} 36. Bf2 {[%clk 0:01:04.6]} 36... Ra3 {[%clk 0:00:18.1]} 37. Ra8+
{[%clk 0:01:02.1]} 37... Kh7 {[%clk 0:00:17.9]} 38. Bd4 {[%clk 0:01:03]} 1-0

[Event "Late-Titled-Tuesday-Blitz-February-06-2024"]
[Site "Chess.com"]
[Date "2024.02.06"]
[Round "4"]
[White "Hrant_ChessMood"]
[Black "arenal72"]
[Result "1-0"]
[WhiteElo "2934"]
[BlackElo "2589"]
[TimeControl "180+1"]
[EndTime "14:38:09 PST"]
[Termination "Hrant_ChessMood won on time"]

1. Nf3 {[%clk 0:02:53.5]} 1... d6 {[%clk 0:02:57.5]} 2. d4 {[%clk 0:02:53.2]}
2... g6 {[%clk 0:02:55.2]} 3. e4 {[%clk 0:02:52.8]} 3... Nf6 {[%clk 0:02:54.8]}
4. Nc3 {[%clk 0:02:49.5]} 4... Bg7 {[%clk 0:02:50.3]} 5. Be2 {[%clk 0:02:50]}
5... O-O {[%clk 0:02:49.4]} 6. O-O {[%clk 0:02:50.3]} 6... Nc6 {[%clk
0:02:46.3]} 7. d5 {[%clk 0:02:47.5]} 7... Nb8 {[%clk 0:02:46]} 8. h3 {[%clk
0:02:47.7]} 8... e5 {[%clk 0:02:43.7]} 9. dxe6 {[%clk 0:02:46.1]} 9... Bxe6
{[%clk 0:02:36.8]} 10. Bf4 {[%clk 0:02:44]} 10... Nbd7 {[%clk 0:02:35.7]} 11.
Re1 {[%clk 0:02:42]} 11... Nc5 {[%clk 0:02:32.7]} 12. Bf1 {[%clk 0:02:41.6]}
12... Re8 {[%clk 0:02:32.6]} 13. Qd2 {[%clk 0:02:22.6]} 13... Bd7 {[%clk
0:02:28.1]} 14. e5 {[%clk 0:02:08.3]} 14... dxe5 {[%clk 0:02:27.2]} 15. Nxe5
{[%clk 0:02:08.3]} 15... Be6 {[%clk 0:02:20.7]} 16. Qe3 {[%clk 0:02:07.8]} 16...
Qe7 {[%clk 0:02:14.1]} 17. Rad1 {[%clk 0:02:00.4]} 17... Rad8 {[%clk 0:02:12.6]}
18. Rxd8 {[%clk 0:01:50.8]} 18... Rxd8 {[%clk 0:02:12.3]} 19. Bg5 {[%clk
0:01:50.9]} 19... h6 {[%clk 0:01:02.4]} 20. Bxh6 {[%clk 0:01:45.5]} 20... Bxh6
{[%clk 0:00:36.7]} 21. Qxh6 {[%clk 0:01:46.4]} 21... Ncd7 {[%clk 0:00:35.3]} 22.
Nxg6 {[%clk 0:01:36.3]} 22... fxg6 {[%clk 0:00:33.7]} 23. Qxg6+ {[%clk
0:01:37.2]} 23... Kf8 {[%clk 0:00:31.1]} 24. Qh6+ {[%clk 0:01:37.2]} 24... Kf7
{[%clk 0:00:23.6]} 25. Bc4 {[%clk 0:01:31.9]} 25... Bxc4 {[%clk 0:00:20.4]} 26.
Rxe7+ {[%clk 0:01:31.1]} 26... Kxe7 {[%clk 0:00:21.3]} 27. Qe3+ {[%clk
0:01:31.5]} 27... Kf7 {[%clk 0:00:20.9]} 28. Qxa7 {[%clk 0:01:30.7]} 28... Ba6
{[%clk 0:00:13.8]} 29. Qd4 {[%clk 0:01:22.9]} 29... Re8 {[%clk 0:00:13.2]} 30.
b4 {[%clk 0:01:21.7]} 30... c6 {[%clk 0:00:09.5]} 31. a4 {[%clk 0:01:19.5]}
31... b6 {[%clk 0:00:06.8]} 32. Qd6 {[%clk 0:01:14.1]} 32... Re6 {[%clk
0:00:04.7]} 33. Qc7 {[%clk 0:01:14.4]} 33... Kg6 {[%clk 0:00:03.5]} 34. b5
{[%clk 0:01:13.4]} 34... cxb5 {[%clk 0:00:02.8]} 35. axb5 {[%clk 0:01:14.3]} 1-0

[Event "Late-Titled-Tuesday-Blitz-February-06-2024"]
[Site "Chess.com"]
[Date "2024.02.06"]
[Round "4"]
[White "zverr1"]
[Black "LikeWater"]
[Result "1-0"]
[WhiteElo "2579"]
[BlackElo "2776"]
[TimeControl "180+1"]
[EndTime "14:38:09 PST"]
[Termination "zverr1 won on time"]

1. e4 {[%clk 0:03:00.9]} 1... c5 {[%clk 0:02:58.9]} 2. Nf3 {[%clk 0:03:00.9]}
2... Nc6 {[%clk 0:02:58.6]} 3. d4 {[%clk 0:03:01.1]} 3... cxd4 {[%clk
0:02:58.8]} 4. Nxd4 {[%clk 0:03:02]} 4... Nf6 {[%clk 0:02:58.7]} 5. Nc3 {[%clk
0:03:01.9]} 5... e5 {[%clk 0:02:58.8]} 6. Ndb5 {[%clk 0:03:02.4]} 6... d6 {[%clk
0:02:58.5]} 7. Be3 {[%clk 0:03:02.2]} 7... a6 {[%clk 0:02:58.3]} 8. Na3 {[%clk
0:03:02.5]} 8... b5 {[%clk 0:02:58.1]} 9. Nd5 {[%clk 0:03:02.9]} 9... Nxd5
{[%clk 0:02:48.8]} 10. exd5 {[%clk 0:03:03.8]} 10... Ne7 {[%clk 0:02:47.9]} 11.
c4 {[%clk 0:03:04.5]} 11... bxc4 {[%clk 0:02:38.9]} 12. Nxc4 {[%clk 0:03:00.8]}
12... Nf5 {[%clk 0:02:35.1]} 13. Bb6 {[%clk 0:02:59.8]} 13... Qh4 {[%clk
0:02:26.9]} 14. Bd3 {[%clk 0:02:43]} 14... Be7 {[%clk 0:02:15.2]} 15. Bxf5
{[%clk 0:02:33.3]} 15... Bxf5 {[%clk 0:02:13.6]} 16. Qa4+ {[%clk 0:02:33]} 16...
Kf8 {[%clk 0:02:09.8]} 17. O-O {[%clk 0:02:14.8]} 17... h5 {[%clk 0:02:05.4]}
18. Be3 {[%clk 0:02:00.8]} 18... Qe4 {[%clk 0:00:53.1]} 19. Rfd1 {[%clk
0:01:52.5]} 19... h4 {[%clk 0:00:48.6]} 20. h3 {[%clk 0:01:41.6]} 20... g5
{[%clk 0:00:34]} 21. Nb6 {[%clk 0:01:35.7]} 21... Qxa4 {[%clk 0:00:29.3]} 22.
Nxa4 {[%clk 0:01:36.6]} 22... Bc2 {[%clk 0:00:23.3]} 23. Nb6 {[%clk 0:01:36.9]}
23... Bxd1 {[%clk 0:00:18.5]} 24. Nxa8 {[%clk 0:01:36.6]} 24... Bc2 {[%clk
0:00:12.6]} 25. Rc1 {[%clk 0:01:28.3]} 25... Be4 {[%clk 0:00:11.6]} 26. Nb6
{[%clk 0:01:24.1]} 26... Kg7 {[%clk 0:00:11.3]} 27. f3 {[%clk 0:01:24.6]} 27...
Bf5 {[%clk 0:00:11.1]} 28. Rc6 {[%clk 0:01:21.8]} 28... e4 {[%clk 0:00:09.5]}
29. Bd4+ {[%clk 0:01:16.2]} 29... f6 {[%clk 0:00:02.8]} 30. Rc7 {[%clk 0:01:05]}
1-0

[Event "Late-Titled-Tuesday-Blitz-February-06-2024"]
[Site "Chess.com"]
[Date "2024.02.06"]
[Round "4"]
[White "Nouali_Mohamed"]
[Black "Kosak12"]
[Result "0-1"]
[WhiteElo "2571"]
[BlackElo "2826"]
[TimeControl "180+1"]
[EndTime "14:38:18 PST"]
[Termination "Kosak12 won on time"]

1. e4 {[%clk 0:03:00.9]} 1... c6 {[%clk 0:02:49.1]} 2. d4 {[%clk 0:03:00.3]}
2... d5 {[%clk 0:02:49.1]} 3. e5 {[%clk 0:03:00.8]} 3... Bf5 {[%clk 0:02:49]} 4.
Nc3 {[%clk 0:03:00.9]} 4... e6 {[%clk 0:02:49]} 5. g4 {[%clk 0:03:01.4]} 5...
Bg6 {[%clk 0:02:49.3]} 6. Nge2 {[%clk 0:03:02]} 6... c5 {[%clk 0:02:48.7]} 7. h4
{[%clk 0:03:01.7]} 7... h5 {[%clk 0:02:49.1]} 8. Nf4 {[%clk 0:03:02]} 8... Bh7
{[%clk 0:02:49.5]} 9. g5 {[%clk 0:03:02.5]} 9... cxd4 {[%clk 0:02:47.6]} 10. Nb5
{[%clk 0:03:02.7]} 10... Be4 {[%clk 0:02:47.9]} 11. f3 {[%clk 0:02:52.3]} 11...
Bf5 {[%clk 0:02:44.9]} 12. g6 {[%clk 0:02:42.1]} 12... Nc6 {[%clk 0:01:46.4]}
13. Nxd4 {[%clk 0:02:16.9]} 13... Nge7 {[%clk 0:01:41]} 14. gxf7+ {[%clk
0:01:45.4]} 14... Kxf7 {[%clk 0:01:39.7]} 15. Nxf5 {[%clk 0:01:15.2]} 15... Nxf5
{[%clk 0:01:37.7]} 16. Bd3 {[%clk 0:01:02.1]} 16... g6 {[%clk 0:01:17.1]} 17.
Qe2 {[%clk 0:00:42.4]} 17... Be7 {[%clk 0:01:08.5]} 18. Rg1 {[%clk 0:00:22.2]}
18... Bxh4+ {[%clk 0:00:59]} 19. Kd1 {[%clk 0:00:21.8]} 19... Rg8 {[%clk
0:00:56]} 20. Nh3 {[%clk 0:00:10.8]} 20... Qb6 {[%clk 0:00:50]} 21. c3 {[%clk
0:00:04]} 21... Rac8 {[%clk 0:00:43.9]} 22. Bg5 {[%clk 0:00:04.1]} 22... Bxg5
{[%clk 0:00:41.4]} 23. Nxg5+ {[%clk 0:00:04.4]} 23... Ke7 {[%clk 0:00:41.6]} 24.
Bxf5 {[%clk 0:00:02.3]} 24... Qxg1+ {[%clk 0:00:38]} 25. Kd2 {[%clk 0:00:01.7]}
25... Qxg5+ {[%clk 0:00:37.5]} 0-1

[Event "Late-Titled-Tuesday-Blitz-February-06-2024"]
[Site "Chess.com"]
[Date "2024.02.06"]
[Round "4"]
[White "protectiago"]
[Black "nikitadovbnya2008"]
[Result "1-0"]
[WhiteElo "2106"]
[BlackElo "2337"]
[TimeControl "180+1"]
[EndTime "14:38:23 PST"]
[Termination "protectiago won by checkmate"]

1. d4 {[%clk 0:02:59.7]} 1... Nf6 {[%clk 0:02:53]} 2. c4 {[%clk 0:02:59.4]} 2...
e6 {[%clk 0:02:53.4]} 3. g3 {[%clk 0:02:59.1]} 3... Bb4+ {[%clk 0:02:52.6]} 4.
Bd2 {[%clk 0:02:58.8]} 4... c5 {[%clk 0:02:53.1]} 5. Bg2 {[%clk 0:02:50.1]} 5...
Qb6 {[%clk 0:02:51]} 6. Nf3 {[%clk 0:02:22.3]} 6... Nc6 {[%clk 0:02:50.5]} 7.
dxc5 {[%clk 0:01:33.1]} 7... Bxc5 {[%clk 0:02:48.8]} 8. O-O {[%clk 0:01:33.2]}
8... Qxb2 {[%clk 0:02:46]} 9. Bc3 {[%clk 0:01:33.3]} 9... Qb6 {[%clk 0:02:45.7]}
10. Bxf6 {[%clk 0:01:25.7]} 10... gxf6 {[%clk 0:02:46.6]} 11. Nc3 {[%clk
0:01:26]} 11... a6 {[%clk 0:02:42.6]} 12. Ne4 {[%clk 0:01:10.2]} 12... Be7
{[%clk 0:02:40.6]} 13. Nd6+ {[%clk 0:01:04.8]} 13... Kf8 {[%clk 0:02:26.3]} 14.
Rb1 {[%clk 0:00:58.5]} 14... Qc7 {[%clk 0:02:20.5]} 15. c5 {[%clk 0:00:56.6]}
15... Bxd6 {[%clk 0:02:16]} 16. cxd6 {[%clk 0:00:54.6]} 16... Qa5 {[%clk
0:02:15.7]} 17. e4 {[%clk 0:00:43.6]} 17... b5 {[%clk 0:02:14.3]} 18. e5 {[%clk
0:00:35.7]} 18... fxe5 {[%clk 0:02:11.3]} 19. Nxe5 {[%clk 0:00:34.3]} 19... Qd8
{[%clk 0:01:15.2]} 20. Qh5 {[%clk 0:00:29.1]} 20... Nxe5 {[%clk 0:00:42.1]} 21.
Bxa8 {[%clk 0:00:22.9]} 21... Qf6 {[%clk 0:00:42]} 22. f4 {[%clk 0:00:18.8]}
22... Nc4 {[%clk 0:00:38.9]} 23. Rbe1 {[%clk 0:00:17.4]} 23... Nxd6 {[%clk
0:00:33.8]} 24. f5 {[%clk 0:00:17.3]} 24... Nxf5 {[%clk 0:00:26.9]} 25. g4
{[%clk 0:00:17.2]} 25... Qd4+ {[%clk 0:00:19.9]} 26. Kh1 {[%clk 0:00:17.5]}
26... Ng7 {[%clk 0:00:18.6]} 27. Qxf7# {[%clk 0:00:17.3]} 1-0

[Event "Late-Titled-Tuesday-Blitz-February-06-2024"]
[Site "Chess.com"]
[Date "2024.02.06"]
[Round "4"]
[White "rcmz"]
[Black "gtnamfrq"]
[Result "0-1"]
[WhiteElo "2135"]
[BlackElo "2288"]
[TimeControl "180+1"]
[EndTime "14:38:23 PST"]
[Termination "gtnamfrq won on time"]

1. b4 {[%clk 0:03:00.9]} 1... e6 {[%clk 0:02:58.1]} 2. Bb2 {[%clk 0:03:00.1]}
2... Nf6 {[%clk 0:02:57.1]} 3. a3 {[%clk 0:02:59.3]} 3... a5 {[%clk 0:02:57.3]}
4. b5 {[%clk 0:02:58.9]} 4... b6 {[%clk 0:02:57.7]} 5. e3 {[%clk 0:02:58.9]}
5... Bb7 {[%clk 0:02:58]} 6. f4 {[%clk 0:02:59.1]} 6... d6 {[%clk 0:02:56.9]} 7.
Nf3 {[%clk 0:02:59.1]} 7... Nbd7 {[%clk 0:02:56.9]} 8. Be2 {[%clk 0:02:59.2]}
8... g6 {[%clk 0:02:56]} 9. O-O {[%clk 0:02:57.8]} 9... Bg7 {[%clk 0:02:56.7]}
10. c4 {[%clk 0:02:57.5]} 10... O-O {[%clk 0:02:56.6]} 11. Qc2 {[%clk
0:02:57.4]} 11... a4 {[%clk 0:02:56.3]} 12. Nc3 {[%clk 0:02:55.6]} 12... Nc5
{[%clk 0:02:56.4]} 13. Rae1 {[%clk 0:02:40.8]} 13... Nfe4 {[%clk 0:02:56]} 14.
Nxe4 {[%clk 0:02:26.7]} 14... Bxe4 {[%clk 0:02:54.4]} 15. d3 {[%clk 0:02:25.9]}
15... Bxd3 {[%clk 0:02:44.2]} 16. Bxd3 {[%clk 0:02:22.9]} 16... Bxb2 {[%clk
0:02:44.8]} 17. Be4 {[%clk 0:02:06.3]} 17... Nxe4 {[%clk 0:02:42]} 18. Qxe4
{[%clk 0:02:02.3]} 18... Bxa3 {[%clk 0:02:39]} 19. Nd4 {[%clk 0:01:59.9]} 19...
Bc5 {[%clk 0:02:34]} 20. Nc6 {[%clk 0:01:58.7]} 20... Qf6 {[%clk 0:02:28.2]} 21.
Kh1 {[%clk 0:01:41.2]} 21... a3 {[%clk 0:02:23.8]} 22. Ra1 {[%clk 0:01:38.7]}
22... Ra4 {[%clk 0:02:19.1]} 23. Ra2 {[%clk 0:01:34.5]} 23... Qc3 {[%clk
0:02:15.5]} 24. Qb1 {[%clk 0:00:35.8]} 24... Rxc4 {[%clk 0:02:07]} 25. e4 {[%clk
0:00:33.8]} 25... d5 {[%clk 0:01:58.6]} 26. exd5 {[%clk 0:00:23.8]} 26... exd5
{[%clk 0:01:59.5]} 27. f5 {[%clk 0:00:22]} 27... Re8 {[%clk 0:01:56.3]} 28. f6
{[%clk 0:00:20.5]} 28... d4 {[%clk 0:01:48.3]} 29. Qd1 {[%clk 0:00:18.6]} 29...
d3 {[%clk 0:01:47.4]} 30. Rd2 {[%clk 0:00:16.8]} 30... Bf8 {[%clk 0:01:45.5]}
31. Rxd3 {[%clk 0:00:14.3]} 31... Qb2 {[%clk 0:01:41.3]} 32. Rd2 {[%clk
0:00:13.1]} 32... Qxb5 {[%clk 0:01:39.8]} 33. Ne7+ {[%clk 0:00:11]} 33... Bxe7
{[%clk 0:01:39]} 34. fxe7 {[%clk 0:00:11.2]} 34... Rxe7 {[%clk 0:01:37.8]} 35.
Rd8+ {[%clk 0:00:11]} 35... Kg7 {[%clk 0:01:38.4]} 36. Qa1+ {[%clk 0:00:09.9]}
36... Qe5 {[%clk 0:01:38.6]} 37. Qxa3 {[%clk 0:00:08.5]} 37... c5 {[%clk
0:01:36.9]} 38. Qf3 {[%clk 0:00:07.3]} 38... Re4 {[%clk 0:01:32.3]} 39. h3
{[%clk 0:00:06.6]} 39... Re1 {[%clk 0:01:31.9]} 40. Rxe1 {[%clk 0:00:05.7]}
40... Qxe1+ {[%clk 0:01:32.8]} 41. Kh2 {[%clk 0:00:05.7]} 41... Qe5+ {[%clk
0:01:32]} 42. Kh1 {[%clk 0:00:05.1]} 42... b5 {[%clk 0:01:29.2]} 43. Rd5 {[%clk
0:00:03.7]} 43... Qe1+ {[%clk 0:01:25.7]} 44. Kh2 {[%clk 0:00:03.7]} 44... Re5
{[%clk 0:01:11.6]} 45. Rxe5 {[%clk 0:00:02]} 45... Qxe5+ {[%clk 0:01:11.4]} 0-1

[Event "Late-Titled-Tuesday-Blitz-February-06-2024"]
[Site "Chess.com"]
[Date "2024.02.06"]
[Round "4"]
[White "Nf3c5"]
[Black "Balla_Tamas"]
[Result "1-0"]
[WhiteElo "2578"]
[BlackElo "2417"]
[TimeControl "180+1"]
[EndTime "14:38:26 PST"]
[Termination "Nf3c5 won by resignation"]

1. d4 {[%clk 0:02:58.6]} 1... d5 {[%clk 0:03:00.1]} 2. Nf3 {[%clk 0:02:57.7]}
2... Nf6 {[%clk 0:03:00.2]} 3. e3 {[%clk 0:02:55.6]} 3... Bg4 {[%clk 0:02:59.8]}
4. h3 {[%clk 0:02:53.1]} 4... Bh5 {[%clk 0:02:59.6]} 5. g4 {[%clk 0:02:53.4]}
5... Bg6 {[%clk 0:03:00]} 6. Ne5 {[%clk 0:02:54.3]} 6... e6 {[%clk 0:02:54.3]}
7. h4 {[%clk 0:02:53.8]} 7... h5 {[%clk 0:02:13.2]} 8. Nxg6 {[%clk 0:02:48.7]}
8... fxg6 {[%clk 0:02:13.7]} 9. g5 {[%clk 0:02:49.4]} 9... Ne4 {[%clk
0:02:14.2]} 10. Bd3 {[%clk 0:02:42.8]} 10... Bd6 {[%clk 0:02:07.5]} 11. Nd2
{[%clk 0:02:28.4]} 11... Nd7 {[%clk 0:01:24]} 12. Nxe4 {[%clk 0:02:22.9]} 12...
dxe4 {[%clk 0:01:24.3]} 13. Bxe4 {[%clk 0:02:23.7]} 13... O-O {[%clk 0:01:12.7]}
14. Bxg6 {[%clk 0:02:20.5]} 14... e5 {[%clk 0:01:12.9]} 15. Qxh5 {[%clk
0:02:19.3]} 15... Nf6 {[%clk 0:01:05.4]} 16. gxf6 {[%clk 0:02:16.9]} 16... Rxf6
{[%clk 0:01:06.3]} 17. Qh7+ {[%clk 0:02:07.2]} 17... Kf8 {[%clk 0:01:06.5]} 18.
Qh8+ {[%clk 0:02:02.2]} 18... Ke7 {[%clk 0:01:06.9]} 19. Qxg7+ {[%clk 0:01:51]}
19... Ke6 {[%clk 0:01:06.5]} 20. d5+ {[%clk 0:01:25.4]} 20... Kxd5 {[%clk
0:01:05.9]} 21. e4+ {[%clk 0:01:24.9]} 21... Kc6 {[%clk 0:01:04.4]} 22. Bg5
{[%clk 0:01:24.3]} 22... Bb4+ {[%clk 0:00:54]} 23. c3 {[%clk 0:01:20.3]} 23...
Qd3 {[%clk 0:00:52.5]} 24. Qxf6+ {[%clk 0:01:19.3]} 24... Kb5 {[%clk 0:00:53]}
25. Qxe5+ {[%clk 0:01:19]} 25... Bc5 {[%clk 0:00:53.5]} 26. a4+ {[%clk
0:01:01.4]} 26... Kb6 {[%clk 0:00:52.8]} 27. a5+ {[%clk 0:00:35.4]} 27... Kb5
{[%clk 0:00:51.4]} 28. b4 {[%clk 0:00:35.7]} 28... b6 {[%clk 0:00:41.8]} 29.
bxc5 {[%clk 0:00:33.6]} 29... bxc5 {[%clk 0:00:33.5]} 30. Be8+ {[%clk
0:00:29.6]} 30... c6 {[%clk 0:00:31.4]} 31. Bxc6+ {[%clk 0:00:27.1]} 31... Ka6
{[%clk 0:00:29.6]} 32. Bxa8 {[%clk 0:00:24.2]} 32... Qf3 {[%clk 0:00:29.8]} 33.
Qd6+ {[%clk 0:00:23.3]} 33... Kb5 {[%clk 0:00:30.1]} 34. Rb1+ {[%clk 0:00:22.9]}
34... Ka4 {[%clk 0:00:30.1]} 35. Bc6+ {[%clk 0:00:22.6]} 35... Kxa5 {[%clk
0:00:29.7]} 36. Qxc5+ {[%clk 0:00:22.3]} 1-0

[Event "Late-Titled-Tuesday-Blitz-February-06-2024"]
[Site "Chess.com"]
[Date "2024.02.06"]
[Round "4"]
[White "Schattman"]
[Black "ValeriyGrinev"]
[Result "0-1"]
[WhiteElo "2389"]
[BlackElo "2549"]
[TimeControl "180+1"]
[EndTime "14:38:26 PST"]
[Termination "ValeriyGrinev won on time"]

1. c4 {[%clk 0:02:57.3]} 1... c5 {[%clk 0:02:59.3]} 2. Nf3 {[%clk 0:02:54.6]}
2... g6 {[%clk 0:02:57.4]} 3. g3 {[%clk 0:02:51]} 3... Bg7 {[%clk 0:02:57.2]} 4.
Bg2 {[%clk 0:02:51.6]} 4... Nc6 {[%clk 0:02:57.5]} 5. Nc3 {[%clk 0:02:50.4]}
5... d6 {[%clk 0:02:58]} 6. O-O {[%clk 0:02:47.2]} 6... e5 {[%clk 0:02:58.4]} 7.
Ne1 {[%clk 0:02:42.7]} 7... Be6 {[%clk 0:02:57.4]} 8. d3 {[%clk 0:02:43]} 8...
Nge7 {[%clk 0:02:55.7]} 9. Nc2 {[%clk 0:02:42.6]} 9... d5 {[%clk 0:02:55.7]} 10.
cxd5 {[%clk 0:02:36.1]} 10... Nxd5 {[%clk 0:02:56.6]} 11. Ne3 {[%clk 0:02:29.6]}
11... Nde7 {[%clk 0:02:55.8]} 12. Ne4 {[%clk 0:02:21.5]} 12... b6 {[%clk
0:02:54.8]} 13. b3 {[%clk 0:02:16.5]} 13... O-O {[%clk 0:02:36.3]} 14. Bb2
{[%clk 0:02:15.9]} 14... h6 {[%clk 0:02:35.7]} 15. Qd2 {[%clk 0:01:49.1]} 15...
f5 {[%clk 0:02:31.3]} 16. Nc3 {[%clk 0:01:49]} 16... Rc8 {[%clk 0:02:25.9]} 17.
Nc4 {[%clk 0:01:43.2]} 17... Nd4 {[%clk 0:02:10.5]} 18. e3 {[%clk 0:01:36.8]}
18... Ndc6 {[%clk 0:02:09.1]} 19. Rad1 {[%clk 0:01:34.7]} 19... Qd7 {[%clk
0:02:01]} 20. Ne2 {[%clk 0:01:27.9]} 20... Rfd8 {[%clk 0:01:55.8]} 21. Qc1
{[%clk 0:01:24]} 21... Bd5 {[%clk 0:01:45.5]} 22. f4 {[%clk 0:01:14.4]} 22...
Bxg2 {[%clk 0:01:44.2]} 23. Kxg2 {[%clk 0:01:14.5]} 23... Nd5 {[%clk 0:01:44.3]}
24. Nxe5 {[%clk 0:01:01.1]} 24... Nxe5 {[%clk 0:01:38.9]} 25. Bxe5 {[%clk
0:01:00.2]} 25... Bxe5 {[%clk 0:01:33.4]} 26. fxe5 {[%clk 0:01:01.1]} 26... Nb4
{[%clk 0:01:31.9]} 27. Qc4+ {[%clk 0:00:49.4]} 27... Kh7 {[%clk 0:01:29.8]} 28.
Kg1 {[%clk 0:00:30.1]} 28... b5 {[%clk 0:01:24.9]} 29. Qc3 {[%clk 0:00:19.5]}
29... Nxa2 {[%clk 0:01:25.3]} 30. Qb2 {[%clk 0:00:19.6]} 30... Nb4 {[%clk
0:01:25.4]} 31. d4 {[%clk 0:00:20]} 31... Qd5 {[%clk 0:01:20.1]} 32. Nf4 {[%clk
0:00:17.3]} 32... Qe4 {[%clk 0:01:19.5]} 33. Qe2 {[%clk 0:00:14.3]} 33... c4
{[%clk 0:01:08]} 34. bxc4 {[%clk 0:00:13.9]} 34... bxc4 {[%clk 0:01:07.4]} 35.
Ra1 {[%clk 0:00:11.5]} 35... Rc7 {[%clk 0:01:05.7]} 36. Rfb1 {[%clk 0:00:08.6]}
36... Nc2 {[%clk 0:00:54.3]} 37. Ra6 {[%clk 0:00:02.2]} 37... Nxe3 {[%clk
0:00:53]} 0-1

[Event "Late-Titled-Tuesday-Blitz-February-06-2024"]
[Site "Chess.com"]
[Date "2024.02.06"]
[Round "4"]
[White "CFalcons8"]
[Black "gahryman"]
[Result "0-1"]
[WhiteElo "2377"]
[BlackElo "2679"]
[TimeControl "180+1"]
[EndTime "14:38:28 PST"]
[Termination "gahryman won by resignation"]

1. d4 {[%clk 0:02:59.5]} 1... Nf6 {[%clk 0:02:59.7]} 2. Nc3 {[%clk 0:02:59.5]}
2... d5 {[%clk 0:02:59.2]} 3. Bf4 {[%clk 0:02:57.2]} 3... e6 {[%clk 0:02:59.2]}
4. e3 {[%clk 0:02:55.8]} 4... Bb4 {[%clk 0:02:56.4]} 5. Bd3 {[%clk 0:02:53.9]}
5... c5 {[%clk 0:02:50.3]} 6. a3 {[%clk 0:02:54.2]} 6... Bxc3+ {[%clk
0:02:48.7]} 7. bxc3 {[%clk 0:02:55.1]} 7... Qa5 {[%clk 0:02:45.7]} 8. dxc5
{[%clk 0:02:43.2]} 8... Qxc3+ {[%clk 0:02:36.4]} 9. Kf1 {[%clk 0:02:42.6]} 9...
Qxc5 {[%clk 0:02:35.9]} 10. Nf3 {[%clk 0:02:39.7]} 10... Nc6 {[%clk 0:02:36.1]}
11. Nd4 {[%clk 0:02:27]} 11... O-O {[%clk 0:02:26.5]} 12. Nxc6 {[%clk
0:02:18.4]} 12... bxc6 {[%clk 0:02:22.8]} 13. g4 {[%clk 0:02:18.1]} 13... Qe7
{[%clk 0:01:58.7]} 14. g5 {[%clk 0:02:17.6]} 14... Nd7 {[%clk 0:01:58.4]} 15. e4
{[%clk 0:02:10.8]} 15... Nc5 {[%clk 0:01:52.2]} 16. exd5 {[%clk 0:02:07]} 16...
exd5 {[%clk 0:01:49.4]} 17. Qf3 {[%clk 0:01:57.9]} 17... Re8 {[%clk 0:01:43.9]}
18. Kg2 {[%clk 0:01:50.7]} 18... Qd7 {[%clk 0:01:22.5]} 19. h4 {[%clk
0:01:44.3]} 19... Bb7 {[%clk 0:01:12]} 20. h5 {[%clk 0:01:23.3]} 20... Ne4
{[%clk 0:01:10.7]} 21. Qh3 {[%clk 0:01:18.2]} 21... Qxh3+ {[%clk 0:01:05.5]} 22.
Rxh3 {[%clk 0:01:19.1]} 22... c5 {[%clk 0:01:06]} 23. Bb5 {[%clk 0:01:19.1]}
23... Re7 {[%clk 0:01:02.4]} 24. Re1 {[%clk 0:01:17]} 24... a6 {[%clk
0:00:45.8]} 25. Bd3 {[%clk 0:01:05]} 25... Rae8 {[%clk 0:00:43.1]} 26. f3 {[%clk
0:00:59.7]} 26... c4 {[%clk 0:00:26.7]} 27. fxe4 {[%clk 0:00:52.3]} 27... cxd3
{[%clk 0:00:25.8]} 28. cxd3 {[%clk 0:00:53]} 28... dxe4 {[%clk 0:00:26]} 29.
dxe4 {[%clk 0:00:50.6]} 29... Rxe4 {[%clk 0:00:26.6]} 30. Rxe4 {[%clk
0:00:50.6]} 30... Rxe4 {[%clk 0:00:27.5]} 31. Rb3 {[%clk 0:00:36.6]} 31... Rb4+
{[%clk 0:00:26.2]} 0-1